fUSD/lending_fUSD_20250401
["ID","MTS","AMOUNT","RATE_DAILY","PERIOD"]
[356994532,1743541872852,-500.0,0.00053424,120]
[356994533,1743541872861,-1070.39,0.00053424,120]
[356994534,1743541872875,-1515.11,0.00053424,12]
[356994535,1743541872884,-156.64,0.00053424,120]
[356994536,1743541872893,-1952.57,0.00053424,30]
[356994537,1743541872903,-2332.68,0.00053424,120]
[356994538,1743541872912,-1038.18,0.00053424,120]
[356994539,1743541872921,-2935.64,0.00053424,120]
[356994540,1743541872931,-500.43,0.00053424,120]
[356994541,1743541872941,-863.86,0.00053424,120]
[356994542,1743541872950,-525.7,0.00053424,120]
[356994543,1743541872960,-1712.99,0.00053424,120]
[356994544,1743541872969,-566.62,0.00053424,120]
[356994545,1743541872978,-1250.0,0.00053424,120]
[356994546,1743541872988,-1079.48,0.00053424,120]
[356994547,1743541872997,-6120.19,0.00053424,2]
[356994548,1743541873007,-1869.9,0.00053424,120]
[356994549,1743541873016,-914.88,0.00053424,120]
[356994550,1743541873025,-615.48,0.00053424,10]
[356994551,1743541873034,-73407.2,0.00053424,7]
[356994552,1743541873043,-584.56518576,0.00053424,120]
[356994553,1743541873052,-2000.0,0.00053424,2]
[356994554,1743541873062,-3865.18,0.00053424,120]
[356994555,1743541873071,-695.02,0.00053424,120]
[356994556,1743541873079,-2400.44,0.00053424,120]
[356994557,1743541873089,-6745.38,0.00053424,120]
[356994558,1743541873100,-500.0,0.00053424,120]
[356994559,1743541873110,-500.0,0.00053424,120]
[356994560,1743541873119,-109546.37886266,0.00053424,30]
[356994561,1743541873128,-150.0,0.00053425,120]
[356994562,1743541873137,-500000.0,0.000535,120]
[356994563,1743541873235,-343.74,0.000536,2]
[356994564,1743541873245,-500.0,0.00053698,120]
[356994565,1743541873255,-1231.97,0.00053698,120]
[356994566,1743541873264,-1595.88,0.00053698,2]
[356994567,1743541873274,-698.18,0.00053698,120]
[356994568,1743541873284,-2273.32,0.00053698,120]
[356994569,1743541873293,-292.05715566,0.00053698,2]
[356994570,1743541873308,-500.0,0.00053698,120]
[356994571,1743541873325,-771.14,0.00053698,120]
[356994572,1743541873335,-339.41396045,0.00053698,120]
[356994573,1743541873347,-286.36845154,0.00053698,120]
[356994574,1743541873356,-1070.39,0.00053698,120]
[356994575,1743541873366,-1515.11,0.00053698,12]
[356994576,1743541873376,-156.64,0.00053698,120]
[356994577,1743541873385,-1952.57,0.00053698,30]
[356994578,1743541873395,-2332.68,0.00053698,120]
[356994579,1743541873404,-1038.18,0.00053698,120]
[356994580,1743541873413,-2935.64,0.00053698,120]
[356994581,1743541873423,-500.43,0.00053698,120]
[356994582,1743541873432,-863.86,0.00053698,120]
[356994583,1743541873441,-525.7,0.00053698,120]
[356994584,1743541873450,-1712.99,0.00053698,120]
[356994585,1743541873459,-566.62,0.00053698,120]
[356994586,1743541873468,-1250.0,0.00053698,120]
[356994587,1743541873479,-1079.48,0.00053698,120]
[356994588,1743541873498,-6120.19,0.00053698,2]
[356994589,1743541873508,-1869.9,0.00053698,120]
[356994590,1743541873518,-914.88,0.00053698,120]
[356994591,1743541873527,-615.48,0.00053698,10]
[356994592,1743541873537,-73407.2,0.00053698,7]
[356994593,1743541873547,-2000.0,0.00053698,2]
[356994594,1743541873556,-3865.18,0.00053698,120]
[356994595,1743541873565,-695.02,0.00053698,120]
[356994596,1743541873574,-2400.44,0.00053698,120]
[356994597,1743541873584,-6745.38,0.00053698,120]
[356994598,1743541873594,-500.0,0.00053698,120]
[356994599,1743541873603,-238.21920333,0.00053698,120]
[356994600,1743541873612,-208.0,0.0005371,30]
[356994601,1743541873621,-209.0,0.0005371,30]
[356994602,1743541873631,-234.949984,0.00053767,30]
[356994603,1743541873641,-999.0,0.00053863,120]
[356994604,1743541873650,-999.0,0.00053863,120]
[356994605,1743541873659,-999.0,0.00053863,120]
[356994606,1743541873668,-999.0,0.00053863,120]
[356994607,1743541873677,-999.0,0.00053863,120]
[356994608,1743541873687,-999.0,0.00053863,120]
[356994609,1743541873695,-999.0,0.00053863,120]
[356994610,1743541873704,-999.0,0.00053863,120]
[356994611,1743541873713,-999.0,0.00053863,120]
[356994612,1743541873723,-999.0,0.00053863,120]
[356994613,1743541873732,-999.0,0.00053863,120]
[356994614,1743541873741,-999.0,0.00053863,120]
[356994615,1743541873750,-999.0,0.00053863,120]
[356994616,1743541873760,-999.0,0.00053863,120]
[356994617,1743541873769,-999.0,0.00053863,120]
[356994618,1743541873778,-999.0,0.00053863,120]
[356994619,1743541873788,-999.0,0.00053863,120]
[356994620,1743541873797,-999.0,0.00053863,120]
[356994621,1743541873807,-999.0,0.00053863,120]
[356994622,1743541873816,-999.0,0.00053863,120]
[356994623,1743541873825,-999.0,0.00053863,120]
[356994624,1743541873835,-999.0,0.00053863,120]
[356994625,1743541873843,-999.0,0.00053863,120]
[356994626,1743541873852,-341.3194131,0.00053863,120]
[356994627,1743541873862,-3000.0,0.0005389,35]
[356994628,1743541873875,-408.238269,0.000539,120]
[356994629,1743541873885,-400.0,0.0005397,7]
[356994630,1743541873895,-474.67449241,0.00053972,120]
[356994631,1743541873904,-1231.97,0.00053972,120]
[356994632,1743541873914,-1595.88,0.00053972,2]
[356994633,1743541873924,-698.18,0.00053972,120]
[356994634,1743541873934,-2273.32,0.00053972,120]
[356994635,1743541873944,-500.0,0.00053972,120]
[356994636,1743541873954,-771.14,0.00053972,120]
[356994637,1743541873963,-1070.39,0.00053972,120]
[356994638,1743541873972,-1515.11,0.00053972,12]
[356994639,1743541873982,-156.64,0.00053972,120]
[356994640,1743541873992,-1952.57,0.00053972,30]
[356994641,1743541874001,-2332.68,0.00053972,120]
[356994642,1743541874010,-1038.18,0.00053972,120]
[356994643,1743541874020,-2935.64,0.00053972,120]
[356994644,1743541874031,-500.43,0.00053972,120]
[356994645,1743541874048,-863.86,0.00053972,120]
[356994646,1743541874058,-525.7,0.00053972,120]
[356994647,1743541874068,-1712.99,0.00053972,120]
[356994648,1743541874077,-566.62,0.00053972,120]
[356994649,1743541874087,-1250.0,0.00053972,120]
[356994650,1743541874096,-1079.48,0.00053972,120]
[356994651,1743541874105,-6120.19,0.00053972,2]
[356994652,1743541874115,-1869.9,0.00053972,120]
[356994653,1743541874124,-914.88,0.00053972,120]
[356994654,1743541874134,-615.48,0.00053972,10]
[356994655,1743541874143,-73407.2,0.00053972,7]
[356994656,1743541874153,-582.05671104,0.00053972,2]
[356994657,1743541874162,-3865.18,0.00053972,120]
[356994658,1743541874171,-695.02,0.00053972,120]
[356994659,1743541874180,-2400.44,0.00053972,120]
[356994660,1743541874190,-6745.38,0.00053972,120]
[356994661,1743541874199,-500.0,0.00053972,120]
[356994662,1743541874208,-15000.0,0.0005399,120]
[356994663,1743541874217,-1000.0,0.00053999,120]
[356994664,1743541874226,-50000.0,0.00054,54]
[356994665,1743541874236,-1000.0,0.00054,120]
[356994666,1743541874245,-509665.0,0.00054,120]
[356994667,1743541874254,-500000.0,0.00054,120]
[356994668,1743541874263,-250.0,0.00054,120]
[356994669,1743541874272,-9990.0,0.00054,120]
[356994670,1743541874281,-500.0,0.00054,120]
[356994671,1743541874291,-500.0,0.00054,55]
[356994672,1743541874300,-1065.0,0.0005415,30]
[356994673,1743541874310,-1231.97,0.00054246,120]
[356994674,1743541874319,-1595.88,0.00054246,2]
[356994675,1743541874329,-698.18,0.00054246,120]
[356994676,1743541874338,-2273.32,0.00054246,120]
[356994677,1743541874349,-500.0,0.00054246,120]
[356994678,1743541874359,-771.14,0.00054246,120]
[356994679,1743541874368,-1070.39,0.00054246,120]
[356994680,1743541874378,-1515.11,0.00054246,12]
[356994681,1743541874387,-156.64,0.00054246,120]
[356994682,1743541874396,-1952.57,0.00054246,30]
[356994683,1743541874406,-2332.68,0.00054246,120]
[356994684,1743541874415,-1038.18,0.00054246,120]
[356994685,1743541874424,-2935.64,0.00054246,120]
[356994686,1743541874434,-500.43,0.00054246,120]
[356994687,1743541874443,-863.86,0.00054246,120]
[356994688,1743541874452,-525.7,0.00054246,120]
[356994689,1743541874462,-1712.99,0.00054246,120]
[356994690,1743541874472,-566.62,0.00054246,120]
[356994691,1743541874481,-1250.0,0.00054246,120]
[356994692,1743541874490,-1079.48,0.00054246,120]
[356994693,1743541874499,-1000.0,0.00054246,120]
[356994694,1743541874509,-6120.19,0.00054246,2]
[356994695,1743541874518,-1869.9,0.00054246,120]
[356994696,1743541874527,-914.88,0.00054246,120]
[356994697,1743541874536,-615.48,0.00054246,10]
[356994698,1743541874545,-73407.2,0.00054246,7]
[356994699,1743541874554,-3865.18,0.00054246,120]
[356994700,1743541874563,-695.02,0.00054246,120]
[356994701,1743541874572,-2400.44,0.00054246,120]
[356994702,1743541874581,-6745.38,0.00054246,120]
[356994703,1743541874590,-500.0,0.00054246,120]
[356994704,1743541874601,-205.29613295,0.00054267,120]
[356994705,1743541874611,-150.0,0.000543,120]
[356994706,1743541874620,-343.74,0.000543,2]
[356994707,1743541874628,-150.0,0.000543,120]
[356994708,1743541874637,-171.0,0.0005437,120]
[356994709,1743541874646,-500.0,0.00054394,60]
[356994710,1743541874655,-234.949984,0.00054414,30]
[356994711,1743541874664,-500.0,0.00054423,60]
[356994712,1743541874674,-500.0,0.00054444,60]
[356994713,1743541874683,-166.585,0.00054451,30]
[356994714,1743541874692,-500000.0,0.000545,120]
[356994715,1743541874701,-9999.99999954,0.000545,120]
[356994716,1743541874710,-1231.97,0.0005452,120]
[356994717,1743541874719,-1595.88,0.0005452,2]
[356994718,1743541874728,-698.18,0.0005452,120]
[356994719,1743541874737,-2273.32,0.0005452,120]
[356994720,1743541874747,-500.0,0.0005452,120]
[356994721,1743541874755,-771.14,0.0005452,120]
[356994722,1743541874768,-1070.39,0.0005452,120]
[356994723,1743541874778,-1515.11,0.0005452,12]
[356994724,1743541874788,-156.64,0.0005452,120]
[356994725,1743541874797,-1952.57,0.0005452,30]
[356994726,1743541874807,-2332.68,0.0005452,120]
[356994727,1743541874816,-1038.18,0.0005452,120]
[356994728,1743541874825,-2935.64,0.0005452,120]
[356994729,1743541874835,-500.43,0.0005452,120]
[356994730,1743541874844,-863.86,0.0005452,120]
[356994731,1743541874854,-525.7,0.0005452,120]
[356994732,1743541874864,-1712.99,0.0005452,120]
[356994733,1743541874876,-566.62,0.0005452,120]
[356994734,1743541874971,-1250.0,0.0005452,120]
[356994735,1743541874980,-1079.48,0.0005452,120]
[356994736,1743541874990,-6120.19,0.0005452,2]
[356994737,1743541874999,-1869.9,0.0005452,120]
[356994738,1743541875008,-914.88,0.0005452,120]
[356994739,1743541875018,-615.48,0.0005452,10]
[356994740,1743541875027,-73407.2,0.0005452,7]
[356994741,1743541875036,-3865.18,0.0005452,120]
[356994742,1743541875045,-695.02,0.0005452,120]
[356994743,1743541875054,-2400.44,0.0005452,120]
[356994744,1743541875063,-6745.38,0.0005452,120]
[356994745,1743541875072,-500.0,0.0005452,120]
[356994746,1743541875082,-500.0,0.00054561,60]
[356994747,1743541875091,-10629.4,0.000546,2]
[356994748,1743541875102,-1705.77,0.000546,2]
[356994749,1743541875112,-589.39,0.000546,14]
[356994750,1743541875121,-1089.28,0.00054605,2]
[356994751,1743541875131,-500.0,0.00054681,60]
[356994752,1743541875141,-500.0,0.00054685,60]
[356994753,1743541875150,-20000.0,0.000547,120]
[356994754,1743541875159,-1000.0,0.0005479,100]
[356994755,1743541875168,-531.29812026,0.00054794,120]
[356994756,1743541875178,-1231.97,0.00054794,120]
[356994757,1743541875188,-1595.88,0.00054794,2]
[356994758,1743541875198,-698.18,0.00054794,120]
[356994759,1743541875207,-2273.32,0.00054794,120]
[356994760,1743541875217,-550.47288624,0.00054794,120]
[356994761,1743541875226,-771.14,0.00054794,120]
[356994762,1743541875236,-1000.0,0.00054794,120]
[356994763,1743541875245,-1000.0,0.00054794,120]
[356994764,1743541875255,-1000.0,0.00054794,120]
[356994765,1743541875265,-1000.0,0.00054794,120]
[356994766,1743541875274,-165.73490026,0.00054794,120]
[356994767,1743541875283,-1070.39,0.00054794,120]
[356994768,1743541875292,-1515.11,0.00054794,12]
[356994769,1743541875302,-156.64,0.00054794,120]
[356994770,1743541875312,-1952.57,0.00054794,30]
[356994771,1743541875320,-2332.68,0.00054794,120]
[356994772,1743541875328,-1038.18,0.00054794,120]
[356994773,1743541875337,-2935.64,0.00054794,120]
[356994774,1743541875346,-1000.0,0.00054794,2]
[356994775,1743541875354,-1000.0,0.00054794,2]
[356994776,1743541875362,-1000.0,0.00054794,2]
[356994777,1743541875370,-1000.0,0.00054794,2]
[356994778,1743541875379,-1000.0,0.00054794,2]
[356994779,1743541875387,-1000.0,0.00054794,2]
[356994780,1743541875395,-1000.0,0.00054794,2]
[356994781,1743541875403,-1000.0,0.00054794,2]
[356994782,1743541875410,-1088.52350755,0.00054794,2]
[356994783,1743541875418,-500.43,0.00054794,120]
[356994784,1743541875426,-863.86,0.00054794,120]
[356994785,1743541875433,-525.7,0.00054794,120]
[356994786,1743541875441,-1712.99,0.00054794,120]
[356994787,1743541875450,-566.62,0.00054794,120]
[356994788,1743541875458,-1250.0,0.00054794,120]
[356994789,1743541875466,-1079.48,0.00054794,120]
[356994790,1743541875474,-6120.19,0.00054794,2]
[356994791,1743541875482,-1869.9,0.00054794,120]
[356994792,1743541875490,-914.88,0.00054794,120]
[356994793,1743541875498,-615.48,0.00054794,10]
[356994794,1743541875506,-73407.2,0.00054794,7]
[356994795,1743541875514,-1000.0,0.00054794,120]
[356994796,1743541875523,-1000.0,0.00054794,120]
[356994797,1743541875530,-1000.0,0.00054794,120]
[356994798,1743541875536,-1000.0,0.00054794,120]
[356994799,1743541875544,-1000.0,0.00054794,120]
[356994800,1743541875551,-1000.0,0.00054794,120]
[356994801,1743541875557,-1000.0,0.00054794,120]
[356994802,1743541875565,-1000.0,0.00054794,120]
[356994803,1743541875571,-1000.0,0.00054794,120]
[356994804,1743541875581,-1000.0,0.00054794,120]
[356994805,1743541875590,-1000.0,0.00054794,120]
[356994806,1743541875601,-1000.0,0.00054794,120]
[356994807,1743541875610,-865.29157429,0.00054794,120]
[356994808,1743541875619,-3865.18,0.00054794,120]
[356994809,1743541875629,-695.02,0.00054794,120]
[356994810,1743541875638,-2400.44,0.00054794,120]
[356994811,1743541875647,-6745.38,0.00054794,120]
[356994812,1743541875656,-500.0,0.00054794,120]
[356994813,1743541875667,-150.0,0.00054795,120]
[356994814,1743541875676,-150.0,0.00054795,120]
[356994815,1743541875686,-150.0,0.00054795,120]
[356994816,1743541875695,-150.0,0.00054795,120]
[356994817,1743541875704,-13109.83,0.00054795,30]
[356994818,1743541875714,-428.29480011,0.00054795,120]
[356994819,1743541875723,-500.0,0.0005481,60]
[356994820,1743541875733,-150.0,0.00054862,120]
[356994821,1743541875742,-500.0,0.00054893,60]
[356994822,1743541875753,-1926.40687043,0.000549,30]
[356994823,1743541875763,-150.0,0.0005493,120]
[356994824,1743541875773,-150.0,0.00054997,120]
[356994825,1743541875783,-50000.0,0.00055,55]
[356994826,1743541875793,-87682.3240319,0.00055,120]
[356994827,1743541877543,-526.63070369,0.00038188,2]
[356994828,1743541877553,-221.48832852,0.00053424,30]
[356994829,1743541877565,-1379.18167148,0.00053424,30]
[356994830,1743541877575,-606.62983854,0.00053698,30]
[356994831,1743541877615,-994.04016146,0.00053698,30]
[356994832,1743541877625,-1600.67,0.00053972,30]
[356994833,1743541877635,-1600.67,0.00054246,30]
[356994834,1743541877644,-1600.67,0.0005452,30]
[356994835,1743541877654,-477.66458237,0.00054794,30]
[356994836,1743541877668,-1123.00541763,0.00054794,30]
[356994837,1743541877678,-3474.87148139,0.00055,120]
[356994838,1743541877690,-613.0925,0.00055,120]
[356994839,1743542231241,254.29646274,0.00034192,30]
[356994840,1743542243016,-3400.0,0.000149,2]
[356994841,1743542708942,705.60294355,0.0003432,90]
[356994842,1743542711449,999.999995,0.0003432,120]
[356994843,1743542713110,528.27137003,0.0003432,91]
[356994844,1743542720398,634.17918057,0.0003432,120]
[356994845,1743542721231,1986.35184514,0.0003432,120]
[356994846,1743542722113,1199.5148069,0.0003432,120]
[356994847,1743542724405,419.1294256,0.0003432,120]
[356994848,1743542727472,885.93063078,0.0003432,30]
[356994849,1743542727806,271.340726,0.0003432,30]
[356994850,1743542728895,2021.95852163,0.0003432,30]
[356994851,1743542729650,762.80839566,0.0003432,30]
[356994852,1743542732419,1011.93527605,0.00014999,5]
[356994853,1743542738748,186.25083495,0.0003432,120]
[356994854,1743542741020,1323.62388263,0.0003432,120]
[356994855,1743542742516,936.72189533,0.0003432,120]
[356994856,1743542744804,1600.74386324,0.0003432,120]
[356994857,1743542747924,349.25100053,0.0003432,120]
[356994858,1743542762609,629.48039096,0.0003432,90]
[356994860,1743542767040,1105.56952998,0.0003432,120]
[356994861,1743542770107,823.28629242,0.0003432,120]
[356994863,1743542770442,500.01144588,0.0003432,30]
[356994864,1743542771558,220.1098728,0.0003432,60]
[356994865,1743542775497,299.36993526,0.0003432,30]
[356994866,1743542776700,1914.96523866,0.0003432,120]
[356994867,1743542778985,208.3324474,0.0003432,120]
[356994868,1743542783188,155.89133497,0.0003432,120]
[356994869,1743542784924,1903.68687561,0.0003432,120]
[356994870,1743542790697,1222.33174644,0.0003432,120]
[356994871,1743542794188,216.97659382,0.0003432,60]
[356994873,1743542816751,215.89915118,0.0003432,120]
[356994874,1743542823829,1833.19034016,0.0003432,120]
[356994875,1743542824380,1373.07451666,0.0003432,120]
[356994876,1743542829166,156.96684562,0.0003432,30]
[356994877,1743542837003,352.96558709,0.0003432,120]
[356994878,1743542858501,876.64583721,0.0003432,120]
[356994880,1743542862815,2027.98112665,0.0003432,120]
[356994881,1743542868232,971.69437642,0.0003432,120]
[356994882,1743542871137,1082.09997661,0.0003432,120]
[356994883,1743542875640,403.97290806,0.0003432,30]
[356994884,1743542876673,881.05188531,0.0003432,120]
[356994885,1743542884991,714.42726691,0.0003432,30]
[356994886,1743542886427,951.84659034,0.0003432,120]
[356994887,1743542893609,303.87721056,0.0003432,30]
[356994888,1743542893775,1480.36816722,0.0003432,30]
[356994894,1743542911073,355.11359976,0.0003432,120]
[356994895,1743542915227,1282.83233343,0.0003432,120]
[356994896,1743542915732,2031.384983,0.0003432,120]
[356994897,1743542916700,215.33362296,0.0003432,30]
[356994898,1743542916959,1575.51762717,0.0003432,30]
[356994899,1743542917974,222.80210536,0.0003432,30]
[356994900,1743542918013,2693.50145111,0.0003432,30]
[356994901,1743542918110,892.19012907,0.0003432,120]
[356994902,1743542918538,1000.46166848,0.0003432,30]
[356994903,1743542918663,2327.60583185,0.0003432,30]
[356994904,1743542918989,1262.95185537,0.0003432,120]
[356994905,1743542919398,470.60908942,0.0003432,90]
[356994906,1743542921820,1293.59093067,0.0003432,120]
[356994907,1743542921925,1098.54413191,0.0003432,120]
[356994909,1743542922733,772.1123153,0.0003432,120]
[356994913,1743542924631,978.80428846,0.0003432,120]
[356994914,1743542924741,194.36021809,0.0003432,120]
[356994915,1743542925605,210.7179207,0.0003432,120]
[356994917,1743542926763,262.36447691,0.0003432,30]
[356994918,1743542927440,507.21263995,0.0003432,120]
[356994919,1743542928048,604.63727123,0.0003432,120]
[356994920,1743542928251,374.21283037,0.0003432,120]
[356994921,1743542930960,189.44631907,0.0003432,30]
[356994934,1743543031861,-300.0,0.00014899,2]
[356994936,1743543031871,-150.0,0.000149,2]
[356994937,1743543031880,-473.95,0.000149,2]
[356994940,1743543031920,-209.06179212,0.000149,2]
[356994941,1743543031930,-683.01179211,0.000149,2]
[356994942,1743543031940,-1492.22207577,0.000149,2]
[356994943,1743543032036,-620.335,0.000149,2]
[356994944,1743543032047,-304.0704857,0.000149,2]
[356994945,1743543032159,-374.252,0.000149,2]
[356994957,1743543037895,-2565.13403853,0.000149,2]
[356994958,1743543037905,-1000.0,0.000149,2]
[356994959,1743543037915,-2500.0,0.000149,2]
[356994960,1743543037924,-371.79482992,0.000149,2]
[356994961,1743543037934,-257.77518206,0.000149,2]
[356994962,1743543037943,-3404.41988588,0.000149,2]
[356994963,1743543037952,-205.02115952,0.000149,2]
[356994964,1743543037961,-501.88090667,0.00014973,2]
[356994965,1743543037970,-6800.9899804,0.00015,2]
[356994966,1743543038009,-384.1090751,0.00015,2]
[356994967,1743543038124,-6704.75993082,0.00015,2]
[356994968,1743543038136,-368.236945,0.00015,2]
[356994969,1743543038182,-917.3706897,0.00015,2]
[356994970,1743543038195,-628.51669456,0.00015,2]
[356994971,1743543038218,-147719.9280292,0.00015,2]
[356994972,1743543038247,-320.14840894,0.00015,2]
[356994973,1743543038261,-411.93182001,0.00015,2]
[356994978,1743543040045,-633.8300122,0.00015,2]
[356994979,1743543040162,-4658427.56022819,0.00015,2]
[356994980,1743543040174,-531.41260152,0.00015,2]
[356994981,1743543040451,-19707.83859051,0.00015,2]
[356994988,1743543043134,-81735.04633737,0.00015,2]
[356994989,1743543043193,-9149.40936304,0.00015,2]
[356994990,1743543043254,-1220.36365,0.00015,2]
[356994993,1743543045946,-652.94562,0.00015,2]
[356994996,1743543799796,-150.0,0.00014891,2]
[356994997,1743543800309,925.89,0.00012903,2]
[356994998,1743543841889,-131.29530193,0.00014891,2]
[356994999,1743543841913,-48.07622896,0.00014899,2]
[356995000,1743543899229,150.0,0.00014215,7]
[356995001,1743543901944,-152.37,0.00014899,2]
[356995002,1743543961884,3025.45752568,0.0001485,2]
[356995003,1743544027928,179.24,0.00013699,2]
[356995004,1743544141824,-150.0,0.00014877,2]
[356995005,1743544141847,-86.96526823,0.00014888,2]
[356995009,1743544232011,-63.03473177,0.00014888,2]
[356995010,1743544232021,-150.0,0.00014899,2]
[356995011,1743544232030,-157.00549447,0.000149,2]
[356995012,1743544232042,-106.56830322,0.000149,2]
[356995013,1743544232051,-503.43169678,0.000149,2]
[356995014,1743544232069,-496.56830322,0.000149,2]
[356995015,1743544232079,-142.56324628,0.000149,2]
[356995016,1743544232128,-905.69823873,0.000149,2]
[356995017,1743544232140,-3772.11561499,0.000149,2]
[356995018,1743544232150,-1382.768,0.000149,2]
[356995019,1743544232159,-7253.3345,0.000149,2]
[356995020,1743544232168,-331.7416,0.000149,2]
[356995021,1743544232178,-391.17358601,0.000149,2]
[356995022,1743544232189,-350.0,0.000149,2]
[356995023,1743544232203,-1391.08289891,0.000149,2]
[356995024,1743544232213,-290.00835356,0.000149,2]
[356995025,1743544232248,-77.73516152,0.000149,2]
[356995026,1743544232257,-1409.5462,0.000149,2]
[356995027,1743544232267,-3132.36543812,0.000149,2]
[356995028,1743544232276,-212.99892041,0.000149,2]
[356995029,1743544232285,-960.56506146,0.00014901,2]
[356995030,1743544232307,-363.00845049,0.00014901,2]
[356995115,1743544235633,150.0,0.00014503,2]
[356995120,1743544237997,-1200.0,0.00014901,2]
[356995121,1743544238009,-608.79192614,0.00014901,2]
[356995122,1743544238018,-1665.61807382,0.00014903,2]
[356995123,1743544238030,-604.71309673,0.00014903,2]
[356995124,1743544238053,-862.03426754,0.00014903,2]
[356995125,1743544238063,-1253.44422522,0.00014904,2]
[356995126,1743544238169,-1878.92121287,0.00014904,2]
[356995127,1743544238179,-3132.36543809,0.00014906,2]
[356995128,1743544238188,-3132.36543809,0.00014907,2]
[356995129,1743544238198,-3132.36543809,0.00014909,2]
[356995130,1743544238208,-3132.36543809,0.0001491,2]
[356995131,1743544238218,-3132.36543809,0.00014912,2]
[356995133,1743544238227,-171.85012136,0.00014913,2]
[356995135,1743544238237,-3132.36543809,0.00014913,2]
[356995137,1743544238246,-2269.61325726,0.00014913,2]
[356995138,1743544238421,-150.99,0.00014914,2]
[356995139,1743544238430,-477.91106294,0.00014918,2]
[356995140,1743544238442,-1217.63557993,0.00014918,2]
[356995141,1743544238454,-257.26787767,0.00014918,2]
[356995144,1743544240143,-557.83066358,0.00014918,2]
[356995145,1743544240156,-2354.53481588,0.00014918,2]
[356995146,1743544240165,-2609.78366396,0.00014918,2]
[356995147,1743544240200,-7390.20633604,0.00014918,2]
[356995148,1743544240209,-505.35,0.00014921,2]
[356995149,1743544240219,-240.28,0.00014921,2]
[356995150,1743544240228,-8688.26331522,0.00014924,2]
[356995151,1743544240258,-338.88668478,0.00014924,2]
[356995152,1743544240268,-999.99,0.00014924,2]
[356995153,1743544240278,-18050.65,0.00014999,2]
[356995154,1743544240287,-1645446.43914358,0.00015,2]
[356995155,1743544240296,-2993591.59439983,0.00015,2]
[356995156,1743544240308,-17180.38214028,0.00015,2]
[356995157,1743544240319,-919.39818052,0.00015,2]
[356995158,1743544240330,-4246.59760021,0.00015,2]
[356995159,1743544240435,-133357.41430624,0.00015,2]
[356995184,1743544243061,-1000.0,0.000149,2]
[356995185,1743544243072,-2912.29665833,0.00015,2]
[356995186,1743544243083,-707.3898016,0.00015,2]
[356995187,1743544243096,-370.27588948,0.00015,2]
[356995188,1743544243172,-96211.73703894,0.00015,2]
[356995189,1743544243229,-672.54591315,0.00015,2]
[356995190,1743544243287,-790.557744,0.00015,2]
[356995191,1743544243299,-258.91099997,0.00015,2]
[356995202,1743544246064,-544.999995,0.00015,2]
[356995203,1743544246404,-339.8433507,0.00015,2]
[356995204,1743544246423,-941.635,0.00015,2]
[356995206,1743544259578,-150.0,0.00014885,2]
[356995207,1743544321968,-150.0,0.00014885,2]
[356995208,1743544368769,-1130.2236,0.00014885,2]
[356995209,1743544445886,-1120.6625,0.00014885,2]
[356995210,1743544511611,-589.0629,0.00014885,2]
[356995211,1743544511638,-150.0,0.00014892,2]
[356995212,1743544511665,-150.0,0.00014899,2]
[356995213,1743544511692,-167.8371,0.00014899,2]
[356995215,1743544718465,320.26,0.00026292,120]
[356995216,1743544924846,178.39006662,0.00034295,30]
[356995217,1743544997412,209.6205159,0.00034295,120]